{"text_format":"1","workbook":"xlsx","n_sheets":1,"sheets":["Soupis prací se vzorci"],"not_rendered":{"charts":0,"images":0,"macros":0,"external_links":0,"defined_names":1,"comments":0,"pivot_tables":0},"unopened":[],"bounds":{"document_bytes":16777216,"sheet_cells":100000,"rows_first":2000,"rows_last":500,"rows_between":2000,"halvings":0,"cell_chars":16384,"cell_head_chars":4096},"cells_cut":0,"cells_raw":0,"read":"whole","date_system":"1900"}

{"sheet":"Soupis prací se vzorci","index":0,"n_rows":820,"n_cols":8,"rows_kept":820,"cut":false,"hidden":false,"merged":[[12,3,12,4]]}
[]
[]
["1.","Sestavení nákladů stavby:  \"Rekonstrukce VO oblast Lumírova - Charvatská\""]
[]
[]
[]
[]
[]
[]
[null,null,"Kč",null,null,"Kč"]
[null,null,"bez DPH",null,null,"vč. DPH"]
[]
[null,"Celkové stavební náklady",null,{"$f":"F41","v":0},null,{"$f":"F43","v":0}]
[]
[]
[]
[]
[]
[null,"R E K A P I T U L A C E"]
[]
[]
["I.","demontáže",null,null,null,{"$f":"ROUND(F134,0)","v":0}]
[]
["II.A","montáže",null,null,{"$f":"ROUND(F224,0)","v":0}]
["II.B","montáže - materiál nosný",null,null,{"$f":"ROUND(F460,0)","v":0}]
["II.","montáže celkem",null,null,null,{"$f":"ROUND(SUM(E24:E25),0)","v":0}]
[]
["III.A","uzemnění - montáže",null,null,{"$f":"ROUND(F477,0)","v":0}]
["III.B","uzemnění - materiál nosný",null,null,{"$f":"ROUND(F494,0)","v":0}]
["III.","uzemnění celkem",null,null,null,{"$f":"ROUND(SUM(E28:E29),0)","v":0}]
[]
["IV.","zemní práce",null,null,null,{"$f":"ROUND(F754,0)","v":0},null,"UPOZORNĚNÍ:"]
[null,null,null,null,null,null,null,"Proti neúmyslnému přepsání položek je list uzamčen a odemčeny jsou pouze buňky, které je nezbytné vyplnit (buňka G42 a všechny žlutě zvýrazněné buňky). "]
["V.","dodávka strojů a zařízení (rozváděče)",null,null,null,{"$f":"ROUND(F770,0)","v":0},null,"V případě potřeby je možno list odemknout (pravým tlačítkem myši na záložku listu \"Soupis prací se vzorci\" a vybrat položku \"odemknout list\") - není vyžadováno žádné heslo."]
[]
["VI.","hodinová zúčtovací sazba",null,null,null,{"$f":"ROUND(F783,0)","v":0}]
[]
["VII.","vedlejší a ostatní náklady",null,null,null,{"$f":"ROUND(F820,0)","v":0}]
[]
[]
[null,"CELKOVÉ STAV. NÁKLADY - BEZ DPH",null,null,null,{"$f":"ROUND(SUM(F22:F39),0)","v":0}]
[null,{"$f":"\"DPH \"&$G$42&\"%\"","v":"DPH 21%"},null,null,null,{"$f":"ROUND(F41*($G$42/100),0)","v":0},21,"Do buňky G42 doplnit aktuální sazbu DPH v %"]
[null,"CELKOVÉ STAV. NÁKLADY - vč. DPH",null,null,null,{"$f":"F41+F42","v":0}]
[]
[]
[]
[]
[]
[]
[]
[]
[]
[]
[]
[]
[null,"Poznámky:"]
[]
[null,"Zatřídění stavby dle JKSO - 828.75.1.5"]
[]
[null,"Výměry jednotlivých položek soupisu prací vycházejí z výkazu výměr stavby \"Rekonstrukce VO oblast"]
[null,"Lumírova - Charvatská\", který je součástí CD s projektovou dokumentací v elektronické formě."]
[null,"Ve výkazu výměr jsou rovněž uvedeny nezbytné doplňující informace k jednotlivým položkám a jejich obsahu."]
[null,"Při sestavení soupisu prací stavby \"Rekonstrukce VO oblast Lumírova - Charvatská\" není použita cenová soustava."]
[null,"Všechny dodávky materiálu jsou včetně dopravy materiálu na místo stavby."]
[null,"Ve všech popsaných pracích je zahrnuto i použití nezbytného nářadí, nástrojů a jiných pomůcek nutných pro provedení práce."]
[]
[]
["2.","Soupis prací stavby: \"Rekonstrukce VO oblast Lumírova - Charvatská\""]
[]
[]
["Soupis prací pro investora s uvedením cen obsažen pouze v soupravě č. 1"]
[]
[]
["I.","DEMONTÁŽE","m.j.","počet","      cena za m.j.","cena celkem"]
[]
[1,"kompletní demontáž sadového paticového ocelového stožáru VO (výška do 6 m"]
[null,"včetně) včetně svítidla, patice, svodového kabelu, elektrovýzbroje s jištěním,"]
[null,"koncovek kabelů - včetně montážní plošiny, potřebného nářadí, likvidace výbojky,"]
[null,"naložení, odvozu, likvidace a uložení odpadu","ks",6,null,{"$f":"D79*E79","v":0}]
[{"$f":"A76+1","v":2},"kompletní demontáž sadového bezpaticového ocelového stožáru VO (výška"]
[null,"do 6 m včetně) včetně svítidla, svodového kabelu, elektrovýzbroje s jištěním,"]
[null,"koncovek kabelů - včetně montážní plošiny, potřebného nářadí, likvidace výbojky,"]
[null,"naložení, odvozu, likvidace a uložení odpadu","ks",30,null,{"$f":"D83*E83","v":0}]
[{"$f":"A80+1","v":3},"kompletní demontáž silničního bezpaticového ocelového stožáru VO (výška 10 m)"]
[null,"včetně jednoramenného výložníku, svítidla, svodového kabelu, elektrovýzbroje"]
[null,"s jištěním, koncovek kabelů - včetně montážní plošiny, potřebného nářadí, likvidace"]
[null,"výbojky, naložení, odvozu, likvidace a uložení odpadu","ks",32,null,{"$f":"D87*E87","v":0}]
[{"$f":"A84+1","v":4},"demontáž zapínacího rozváděče RVO na plastovém pilíři v zeleni vč. odstranění"]
[null,"pilíře a dlažby před rozváděčem (cca 1 m2), potřebného nářadí, dovozu ornice,"]
[null,"záhozu a zhutnění jámy, naložení, odvozu, likvidace a uložení odpadu, provedení"]
[null,"definitivní úpravy terénu  včetně dodání travního semene a osetí (cca 1 m2)","ks",1,null,{"$f":"D91*E91","v":0}]
[{"$f":"A88+1","v":5},"demontáž odbočného rozváděče RVOO na plastovém pilíři v zeleni vč. odstranění"]
[null,"pilíře, potřebného nářadí, dovozu ornice, záhozu a zhutnění jámy, naložení, odvozu,"]
[null,"likvidace a uložení odpadu, provedení definitivní úpravy terénu včetně dodání"]
[null,"travního semene a osetí (cca 1 m2)","ks",2,null,{"$f":"D95*E95","v":0}]
[{"$f":"A92+1","v":6},"demontáž smyčkovacího rozváděče RVOS na betonovém nebo zděném pilíři"]
[null,"v zeleni vč. zbourání a odstranění pilíře, potřebného nářadí, dovozu ornice, záhozu"]
[null,"a zhutnění jámy, naložení, odvozu, likvidace a uložení odpadu, provedení definit."]
[null,"úpravy terénu vč. dodání travního semene a osetí (cca 1 m2)","ks",2,null,{"$f":"D99*E99","v":0}]
[{"$f":"A96+1","v":7},"demontáž plast. odbočného rozváděče RVOO na plast. pilíři v zeleni (přisazen"]
[null,"k budově) včetně odstranění pilíře, dovozu ornice, záhozu jámy, zhutnění záhozu,"]
[null,"naložení, odvozu, likvidace a uložení odpadu, provedení definit. úpravy terénu vč."]
[null,"dodání travního semene a osetí trávou, oprava fasády a soklu budovy v rozsahu"]
[null,"dotčení s barevným sladěním se stáv. fasádou a soklem vč. dodání potřebného"]
[null,"materiálu, dodání a osazení 3 ks beton. dlaždic 50x50 cm podél soklu budovy","ks",2,null,{"$f":"D105*E105","v":0}]
[{"$f":"A100+1","v":8},"demontáž základu sadového stožáru VO rozměrů 0,6 x 0,6 m v zeleni - odkopání"]
[null,"základu a rozbití betonu a stožárového pouzdra do hloubky 0,7 m, vyčištění jámy"]
[null,"do hl. 0,7 m včetně naložení, odvozu, likvidace a uložení odpadu, zasypání jámy"]
[null,"drceným kamenivem (50 cm) a ornicí (horní vrstva 20 cm) - vč. potřeb. mechanismů"]
[null,"a nářadí, dodání a dovozu kameniva a ornice, zhutnění záhozu, provedení definitivní"]
[null,"úpravy terénu (zeleň) vč. dodání travního semene a osetí trávou","ks",35,null,{"$f":"D111*E111","v":0}]
[{"$f":"A106+1","v":9},"demontáž základu silničního stožáru VO rozměrů 0,8 x 0,8 m - odkopání základu"]
[null,"a rozbití betonu a stožárového pouzdra do hloubky 0,7 m, vyčištění jámy"]
[null,"do hl. 0,7 m včetně naložení, odvozu, likvidace a uložení odpadu, zasypání jámy"]
[null,"drceným kamenivem (50 cm) a ornicí (horní vrstva 20 cm) - vč. potřeb. mechanismů"]
[null,"a nářadí, dodání a dovozu kameniva a ornice, zhutnění záhozu, provedení definitiv."]
[null,"úpravy terénu (zeleň) vč. dodání travního semene a osetí trávou","ks",32,null,{"$f":"D117*E117","v":0}]
[{"$f":"A112+1","v":10},"demontáž základu sadového stožáru VO rozměrů do 0,6 x 0,6 m - řezání spár, rozbití"]
[null,"asfalt. povrchu, podkladového betonu a stožárového pouzdra do hloubky 0,7 m,"]
[null,"vyčištění jámy do hloubky 0,7 m včetně odvozu, likvidace a uložení odpadu,"]
[null,"zasypání jámy štěrkodrtí (55 cm) - vč. dodání a dovozu štěrkodrti ŠDA 0/32 mm,"]
[null,"zhutnění záhozu, obnovení beton. podkladové vrstvy chodníku (tloušťka do 10 cm)"]
[null,"a provedení definitivní úpravy povrchu (asfalt) vč. potřebných mechanismů a nářadí,"]
[null,"aplikace spojov. postřiku, zalití spár modifikovanou zálivkou, dodání betonu C20/25,"]
[null,"asfaltové hmoty (typ dle stáv. povrchu), spoj. postřiku a modifik. zálivky","ks",1,null,{"$f":"D125*E125","v":0}]
[{"$f":"A118+1","v":11},"demontáž plastové skříňky s elektrovýzbrojí pro 2 okruhy s jištěním a 2 ks plast."]
[null,"ochranných trubek mezi skříňkou a zemí (bez poškození kabelů) - ze stávajícího"]
[null,"ocelového stožáru VO včetně montážní plošiny a potřebného nářadí, naložení,"]
[null,"odvozu, likvidace a uložení odpadu","ks",1,null,{"$f":"D129*E129","v":0}]
[{"$f":"A126+1","v":12},"demontáž kabelu rozvodu VO (do průřezu 4 x 35 mm2 včetně) v zemi v místech"]
[null,"demont. stož. VO a rozváděčů a na lesních pozemcích vč. potřebného nářadí,"]
[null,"naložení, odvozu, likvidace a uložení odpadu (bez zemních prací)","m",778,null,{"$f":"D132*E132","v":0}]
[]
[null,"Celkem",null,null,null,{"$f":"SUM(F76:F133)","v":0}]
[]
[]
["II.A","MONTÁŽE","m.j.","počet","      cena za m.j.","cena celkem"]
[]
[1,"kompletní světelné místo - silniční výložníkový osvětlovací stožár jmen. výšky"]
[null,"10 m v provedení s dříkem určeným k vetknutí do základu nebo v přírubovém"]
[null,"provedení, jednoramenný výložník, LED svítidlo, svodový kabel, elektrovýzbroj"]
[null,"pro 1 okruh (min. IP2X) s jištěním, zatažení kabelů (2 ks do 4x35 mm2 vč.) do"]
[null,"stožáru, zapojení kabelů - včetně montážní plošiny a potřebného nářadí","ks",24,null,{"$f":"D143*E143","v":0}]
[{"$f":"A139+1","v":2},"kompletní světelné místo - silniční výložníkový osvětlovací stožár jmen. výšky"]
[null,"10 m v provedení s dříkem určeným k vetknutí do základu nebo v přírubovém"]
[null,"provedení, dvouramenný výložník, 2 LED svítidla, 2 svod. kabely, elektrovýzbroj"]
[null,"pro 2 okruhy (min. IP2X) s jištěním, zatažení kabelů (2 ks do 4x35 mm2 vč.) do"]
[null,"stožáru, zapojení kabelů - včetně montážní plošiny a potřebného nářadí","ks",7,null,{"$f":"D148*E148","v":0}]
[{"$f":"A144+1","v":3},"kompletní světel. místo - kónický sadový ocel. osvětlovací stožár jmen. výšky 4 m"]
[null,"v provedení s dříkem určeným k vetknutí do základu nebo v přírubovém provedení"]
[null,"vč. LED svítidla osazeného na dříku (přímo nebo pomocí adaptéru), svod. kabelu,"]
[null,"elektrovýzbroje pro 1 okruh (min. IP2X) s jištěním, zatažení 2 kabelů (do 4x35 mm2)"]
[null,"do stožáru, zapojení kabelů - vč. montážní plošiny a potřebného nářadí","ks",7,null,{"$f":"D153*E153","v":0}]
[{"$f":"A149+1","v":4},"kompletní světel. místo - kónický sadový ocel. osvětlovací stožár jmen. výšky 5 m"]
[null,"v provedení s dříkem určeným k vetknutí do základu nebo v přírubovém provedení"]
[null,"vč. LED svítidla osazeného na dříku (přímo nebo pomocí adaptéru), svod. kabelu,"]
[null,"elektrovýzbroje pro 1 okruh (min. IP2X) s jištěním, zatažení 2 kabelů (do 4x35 mm2)"]
[null,"do stožáru, zapojení kabelů - vč. montážní plošiny a potřebného nářadí","ks",36,null,{"$f":"D158*E158","v":0}]
[{"$f":"A154+1","v":5},"kompletní světel. místo - kónický sadový ocel. osvětlovací stožár jmen. výšky 6 m"]
[null,"v provedení s dříkem určeným k vetknutí do základu nebo v přírubovém provedení"]
[null,"vč. LED svítidla osazeného na dříku (přímo nebo pomocí adaptéru), svod. kabelu,"]
[null,"elektrovýzbroje pro 1 okruh (min. IP2X) s jištěním, zatažení 2 kabelů (do 4x35 mm2)"]
[null,"do stožáru, zapojení kabelů - vč. montážní plošiny a potřebného nářadí","ks",3,null,{"$f":"D163*E163","v":0}]
[{"$f":"A159+1","v":6},"očištění, odmaštění a kompletní nátěr spodní části dříku ocelového osvětlovacího"]
[null,"silničního stožáru do výšky 1,4 m nad zemí (dřík Ø168 mm) - 1 x zákl. nátěr na žárově"]
[null,"zinkovaný povrch, 2 x vrchní nátěr šedý  (RAL 7046), očíslování stožáru, označení"]
[null,"dvířek stožáru červeným výstražným bleskem -  včetně dodávky barev a dalšího"]
[null,"potřebného materiálu (štětce, ředidla, šablony, odmašťovací přípravek, samolepka"]
[null,"s výstražným bleskem)","ks",31,null,{"$f":"D169*E169","v":0}]
[{"$f":"A164+1","v":7},"očištění, odmaštění a kompletní nátěr spodní části dříku ocelového osvětlovacího"]
[null,"sad. kónického stožáru do výšky 1,4 m nad zemí - 1 x základní nátěr na žárově"]
[null,"zinkovaný povrch, 2 x vrchní nátěr šedý  (RAL 7046), očíslování stožáru, označení"]
[null,"dvířek stožáru červeným výstražným bleskem -  včetně dodávky barev a dalšího"]
[null,"potřebného materiálu (štětce, ředidla, šablony, odmašťovací přípravek, samolepka"]
[null,"s výstražným bleskem)","ks",46,null,{"$f":"D175*E175","v":0}]
[{"$f":"A170+1","v":8},"plastový zapínací rozváděč RVO (6 vývodový) na plastovém pilíři včetně"]
[null,"sestavení pilíře, zapojení rozváděče a osazení jištění, označení dvířek výstr. blesky,"]
[null,"popis rozváděče, vylepení schéma zapojení rozváděče na vnitřní stranu dvířek","ks",1,null,{"$f":"D178*E178","v":0}]
[{"$f":"A176+1","v":9},"zatažení a zapojení kabelu do stáv. bezpaticového stožáru VO, rozváděče nebo"]
[null,"trafostanice stávající ochrannou trubkou v základu vč. odkopání zeminy u stožáru,"]
[null,"rozváděče nebo trafostanice a následném záhozu výkopu zeminou, zhutnění záhozu"]
[null,"a uvedení povrchu (zeleň) do původ. stavu vč. dodání travního semene a osetí","ks",1,null,{"$f":"D182*E182","v":0}]
[{"$f":"A179+1","v":10},"zatažení kabelu do stáv. bezpaticového sadového stožáru VO vč. rozbití stávající"]
[null,"betonové patky a horní části základu, dodání a osazení ohebné plast. ochr. trubky"]
[null,"Ø40 mm pro průchod kabelu základem, dobetonování základu a zhotovení nové"]
[null,"betonové patky, dodání betonu C25/30-XF2, zapojení kabelu, likvidace a uložení"]
[null,"odpadu, úprava terénu do původ. stavu vč. dodání travního semene (v zeleni)","ks",4,null,{"$f":"D187*E187","v":0}]
[{"$f":"A183+1","v":11},"zatažení kabelu do stáv. bezpaticového silničního stožáru VO vč. rozbití stávající"]
[null,"betonové patky a horní části základu, dodání a osazení ohebné plast. ochr. trubky"]
[null,"Ø40 mm pro průchod kabelu základem, dobetonování základu a zhotovení nové"]
[null,"betonové patky, dodání betonu C25/30-XF2, zapojení kabelu, likvidace a uložení"]
[null,"odpadu, úprava terénu do původ. stavu vč. dodání travního semene (v zeleni)","ks",3,null,{"$f":"D192*E192","v":0}]
[{"$f":"A188+1","v":12},"plastová skříňka s elektrovýzbrojí pro 2 okruhy (min. IP2X) a jištěním páskami"]
[null,"na stávající stožár, zapojení přívodních a svodových kabelů v elektrovýzbroji,"]
[null,"mechanická ochrana svodových kabelů v úseku od skříňky do stožáru,"]
[null,"utěsnění stávajícího otvoru pro svody ve stožáru, označení dvířek skříňky"]
[null,"výstražným bleskem, připojení skříňky na uzemnění, propojení neživých částí"]
[null,"s ochranným vodičem, označení zemniče, osazení 4 ks nových plast. ochranných"]
[null,"trubek kabelů VO od skříňky do země včetně přibetonování k základu, oprava"]
[null,"poškozené betonové patky kolem stožáru - na stávající stožár VO","ks",1,null,{"$f":"D200*E200","v":0}]
[{"$f":"A193+1","v":13},"odbočení kabelu ve stožáru (příplatek na zapojení třetího kabelu v elektrovýzbroji"]
[null,"a na osazení třetí ochranné plastové trubky Ø40 mm do základu stožáru)","ks",26,null,{"$f":"D202*E202","v":0}]
[{"$f":"A201+1","v":14},"ukončení kabelu - kabelová koncovka smršťovací pro kabely 4 x 10 mm2 až"]
[null,"4 x 70 mm2 (všechny konce nových kabelů nebo zkrácených stávajících kabelů"]
[null,"ve stožárech nebo rozváděčích)","ks",189,null,{"$f":"D205*E205","v":0}]
[{"$f":"A203+1","v":15},"plastová pojistková skříň nerez páskami na betonový stožár včetně zapojení,"]
[null,"označení dvířek skříňky výstražným bleskem, označení skříňky popisem VO - vč."]
[null,"montážní plošiny, materiálu potřebného pro popis skříňky (barva, ředitlo, štětec,"]
[null,"šablony) a samolepky s výstražným bleskem","ks",1,null,{"$f":"D209*E209","v":0}]
[{"$f":"A206+1","v":16},"označení stožáru VO kontrastním pruhem dle vyhl. 398/2009Sb. vč. materiálu","ks",2,null,{"$f":"D210*E210","v":0}]
[{"$f":"A210+1","v":17},"plast. ochr. trubka Ø40 mm na beton. stožár (nerez páskami) vč. mont. plošiny","m",8,null,{"$f":"D211*E211","v":0}]
[{"$f":"A211+1","v":18},"osazení krytu proti zatékání vody do ochranné trubky Ø40 mm na betonovém"]
[null,"stožáru - včetně montážní plošiny","ks",1,null,{"$f":"D213*E213","v":0}]
[{"$f":"A212+1","v":19},"napojení kabelu AYKY-J 4x16 na vodiče AES 4x25 vč. montážní plošiny","ks",1,null,{"$f":"D214*E214","v":0}]
[{"$f":"A214+1","v":20},"montáž kabelu 1-CYKY-J 3 x 50+35 mm2 volně ","m",290,null,{"$f":"D215*E215","v":0}]
[21,"montáž kabelu CYKY-J 4 x 16 mm2 volně ","m",1540,null,{"$f":"D216*E216","v":0}]
[22,"montáž kabelu CYKY-J 4 x 10 mm2 volně ","m",2070,null,0]
[23,"montáž kabelu 1-AYKY-J 4 x 16 mm2 volně ","m",85,null,{"$f":"D218*E218","v":0}]
[24,"příplatek za zatahování kabelu do trubkové chráničky (do 2 kg/m)","m",3695,null,{"$f":"D219*E219","v":0}]
[25,"příplatek za zatahování kabelu do trubkové chráničky (2 až 2,5 kg/m)","m",290,null,{"$f":"D220*E220","v":0}]
[26,"ukončení 4 ks lanovaných žil kabelu 1-CYKY-J 3x50+35 mm2 kabelovými oky pro"]
[null,"zapojení do rozváděče RVO nebo vývodového rozváděče v trafostanici","ks",2,null,{"$f":"D222*E222","v":0}]
[]
[null,"Celkem",null,null,null,{"$f":"SUM(F139:F223)","v":0}]
[]
[]
["II.B","MONTÁŽE - materiál nosný","m.j.","počet","      cena za m.j.","cena celkem"]
[]
[1,"ocel. osvětlovací silniční bezpaticový stožár třístupňový jmenovité výšky 10 m"]
[null,"s ochrannou manžetou v místě vetknutí (Ø168/5 mm - délka 3,5 m, Ø133/4,5 mm -"]
[null,"délka 2,9 m, Ø89/4 mm - délka 3,3 m, délka vetknutí dříku do země 1,5 m, nadzemní"]
[null,"výška dříku 8,2 m, celková délka dříku 9,7 m, ochr. manžeta z plechu tl. min. 3 mm,"]
[null,"povrchová úprava celého stožáru oboustranným žárovým zinkováním, zapuštěná"]
[null,"dvířka 100 x 400 mm s uzamykáním zámkem na trojúhelníkový klíč, výška spodního"]
[null,"okraje dvířek 600 mm nad úrovní vetknutí, uvnitř dříku šroub M8 pro upevnění"]
[null,"elektrovýzbroje, ve spodní části dříku otvor se závitem M8 pro montáž uzemnění"]
[null,"cca 200 mm nad úrovní vetknutí, 3 matice a upevňovací šrouby M12 (200 mm od"]
[null,"vrcholu) pro upevnění výložníku)","ks",25,null,{"$f":"D238*E238","v":0}]
[{"$f":"A229+1","v":2},"ocel. osvětl. silniční bezpaticový přírubový stožár třístupňový jmen. výšky 10 m,"]
[null,"(Ø168/5 mm - délka 2 m, Ø133/4,5 mm - délka 2,9 m, Ø89/4 mm - délka 3,3 m,"]
[null,"nadzemní výška dříku 8,2 m, příruba 400 mm x 400 mm s výztužnými žebry, v přírubě"]
[null,"4 otvory Ø26 mm osazené s roztečí 300 mm x 300 mm, tloušťka příruby 20 mm, otvor"]
[null,"v přírubě pro protažení zemniče FeZn Ø10 mm, povrchová úprava celého stožáru"]
[null,"oboustranným žár. zinkováním, zapuštěná dvířka 100x400 mm s uzamykáním zámkem"]
[null,"na trojúhelníkový klíč, výška spodního okraje dvířek 600 mm nad spodním okrajem"]
[null,"příruby, uvnitř dříku šroub M8 pro upevnění elektrovýzbroje, ve spodní části dříku"]
[null,"otvor se závitem M8 pro montáž uzemnění cca 200 mm nad přírubou, 3 matice"]
[null,"a upevňovací šrouby M12 (200 mm od vrcholu) pro upevnění výložníku), ocelový"]
[null,"kotevní rošt (vhodný typ s požadovanými mechan. vlastnostmi dodávaný pro"]
[null,"konkrétní stožár výrobcem stožáru, povrchová úprava min. v nadzemní části žár."]
[null,"zinkováním, sváry v hloubce umožňující spolehlivé zalití betonem pod úrovní terénu),"]
[null,"potřebný spoj. materiál (4x matice M24, 4x uzavřená matice M24, 4x pružná podložka"]
[null,"M24 - vše pozinkované) a 4 ks plast. krytek na kotevní šrouby s maticemi","ks",6,null,{"$f":"D253*E253","v":0}]
[{"$f":"A239+1","v":3},"ocel. kónický osvětl. sadový bezpaticový stožár jmenovité nadzemní výšky 4 m"]
[null,"(Ø127 až 136 mm ve spodní části, Ø60 mm u vrcholu, tlouštka stěny dříku 4 mm,"]
[null,"délka vetknutí dříku do země 0,8 m, nadzemní výška dříku 4 m, celková délka dříku"]
[null,"4,8 m, povrch. úprava celého stožáru oboustranným žárovým zinkováním, zapuštěná"]
[null,"dvířka (min. 85 x 300 mm) s uzamykáním, výška spodního okraje dvířek 600 mm nad"]
[null,"úrovní vetknutí, uvnitř dříku šroub pro upevnění elektrovýzbroje, ve spodní části"]
[null,"dříku otvor se závitem pro montáž uzemnění cca 200 mm nad úrovní vetknutí)","ks",6,null,{"$f":"D260*E260","v":0}]
[{"$f":"A254+1","v":4},"ocelový kónický přírubový sadový osvětl. stožár jmenovité nadzemní výšky 4 m"]
[null,"(Ø116 až 124 mm ve spodní části, Ø60 mm u vrcholu, tlouštka stěny dříku 4 mm,"]
[null,"povrchová úprava celého stožáru oboustr. žárovým zinkováním, zapuštěná dvířka"]
[null,"(min. 85 x 300 mm) s uzamykáním, výška spodního okraje dvířek 600 mm nad spodní"]
[null,"částí příruby, uvnitř dříku šroub pro upevnění výzbroje, otvor v přírubě pro zemnič"]
[null,"FeZn Ø10 mm a šroub pro připojení uzemnění (cca 200 mm nad přírubou), příruba se"]
[null,"4 otvory pro kotevní šrouby (velikost příruby a velikost a rozteč kotevních šroubů"]
[null,"určí výrobce stožáru)), ocel. kotevní rošt (vhodný typ s požadovanými mechanic."]
[null,"vlastnostmi dodávaný pro konkrétní stožár výrobcem stožáru, povrchová úprava"]
[null,"min. v nadzemní části odolávající dlouhodobě povětrnostním vlivům - zinkování,"]
[null,"sváry v hloubce umožňující zalití betonem), potřebný spoj. materiál (4 x matice +"]
[null,"4 x pružná podložka + 4 x uzavřená matice) v povrch. úpravě odolávající dlouhodobě"]
[null,"vnějším vlivům, 4 ks plast. krytek na kotevní šrouby s maticemi","ks",1,null,{"$f":"D273*E273","v":0}]
[{"$f":"A261+1","v":5},"ocel. kónický osvětl. sadový bezpaticový stožár jmenovité nadzemní výšky 5 m"]
[null,"(Ø130 až 145 mm ve spodní části, Ø60 mm u vrcholu, tlouštka stěny dříku 4 mm,"]
[null,"délka vetknutí dříku do země 0,8 m, nadzemní výška dříku 5 m, celková délka dříku"]
[null,"5,8 m, povrch. úprava celého stožáru oboustranným žárovým zinkováním, zapuštěná"]
[null,"dvířka (min. 85 x 300 mm) s uzamykáním, výška spodního okraje dvířek 600 mm nad"]
[null,"úrovní vetknutí, uvnitř dříku šroub pro upevnění elektrovýzbroje, ve spodní části"]
[null,"dříku otvor se závitem pro montáž uzemnění cca 200 mm nad úrovní vetknutí)","ks",35,null,{"$f":"D280*E280","v":0}]
[{"$f":"A274+1","v":6},"ocelový kónický přírubový sadový osvětl. stožár jmenovité nadzemní výšky 5 m"]
[null,"(Ø120 až 135 mm ve spodní části, Ø60 mm u vrcholu, tlouštka stěny dříku 4 mm,"]
[null,"povrchová úprava celého stožáru oboustr. žárovým zinkováním, zapuštěná dvířka"]
[null,"(min. 85 x 300 mm) s uzamykáním, výška spodního okraje dvířek 600 mm nad spodní"]
[null,"částí příruby, uvnitř dříku šroub pro upevnění výzbroje, otvor v přírubě pro zemnič"]
[null,"FeZn Ø10 mm a šroub pro připojení uzemnění (cca 200 mm nad přírubou), příruba se"]
[null,"4 otvory pro kotevní šrouby (velikost příruby a velikost a rozteč kotevních šroubů"]
[null,"určí výrobce stožáru)), ocel. kotevní rošt (vhodný typ s požadovanými mechanic."]
[null,"vlastnostmi dodávaný pro konkrétní stožár výrobcem stožáru, povrchová úprava"]
[null,"min. v nadzemní části odolávající dlouhodobě povětrnostním vlivům - zinkování,"]
[null,"sváry v hloubce umožňující zalití betonem), potřebný spoj. materiál (4 x matice +"]
[null,"pružná podložka + uzavřená matice) v povrchové úpravě odolávající dlouhodobě"]
[null,"vnějším vlivům, 4 ks plast. krytek na kotevní šrouby s maticemi","ks",1,null,{"$f":"D293*E293","v":0}]
[{"$f":"A281+1","v":7},"ocel. kónický osvětl. sadový bezpaticový stožár jmenovité nadzemní výšky 6 m"]
[null,"(Ø140 až 160 mm ve spodní části, Ø60 mm u vrcholu, tlouštka stěny dříku 4 mm,"]
[null,"délka vetknutí dříku do země 1 m, nadzemní výška dříku 6 m, celková délka dříku"]
[null,"7 m, povrch. úprava celého stožáru oboustranným žárovým zinkováním, zapuštěná"]
[null,"dvířka (min. 85 x 300 mm) s uzamykáním, výška spodního okraje dvířek 600 mm nad"]
[null,"úrovní vetknutí, uvnitř dříku šroub pro upevnění elektrovýzbroje, ve spodní části"]
[null,"dříku otvor se závitem pro montáž uzemnění cca 200 mm nad úrovní vetknutí)","ks",3,null,{"$f":"D300*E300","v":0}]
[{"$f":"A294+1","v":8},"ocelový obloukový jednoramenný výložník (vyložení 2,5 m, rameno Ø60/3,5 mm,"]
[null,"provedení pro osazení do dříku Ø89 mm stožárů specifikovaných v položkách č. 1"]
[null,"a č. 2, kryt Ø102 mm proti zatékání vody do stožáru, svou výškou výložník doplňuje"]
[null,"závěsnou výšku svítidel na stožárech specifikovaných v položkách č. 1 a č. 2 na"]
[null,"10 m, úhel vyložení nezatíženého výložníku 4°, celý výložník oboustranně žárově"]
[null,"zinkovaný","ks",23,null,{"$f":"D306*E306","v":0}]
[{"$f":"A301+1","v":9},"ocelový obloukový jednoramenný výložník (vyložení 3 m, rameno Ø60/3,5 mm,"]
[null,"provedení pro osazení do dříku Ø89 mm stožárů specifikovaných v položkách č. 1"]
[null,"a č. 2, kryt Ø102 mm proti zatékání vody do stožáru, svou výškou výložník doplňuje"]
[null,"závěsnou výšku svítidel na stožárech specifikovaných v položkách č. 1 a č. 2 na"]
[null,"10 m, úhel vyložení nezatíženého výložníku 4°, celý výložník oboustranně žárově"]
[null,"zinkovaný","ks",1,null,{"$f":"D312*E312","v":0}]
[{"$f":"A307+1","v":10},"ocel. obloukový dvouramenný výložník (vyložení 2,5 m, ramena Ø60/3,5 mm, výztuha"]
[null,"mezi rameny, provedení pro osazení do dříku Ø89 mm stožárů specifikovaných v pol."]
[null,"č. 1 a č. 2, úhel sevření ramen 90°, kryt Ø102 mm proti zatékání vody do stožáru,"]
[null,"svou výškou výložník doplňuje závěsnou výšku svítidel na stožárech specifikov."]
[null,"v položkách č. 1 a č. 2 na 10 m, úhel vyložení nezatíž. výložníku 4°, celý výložník"]
[null,"oboustranně žárově zinkovaný)","ks",6,null,{"$f":"D318*E318","v":0}]
[{"$f":"A313+1","v":11},"ocel. obloukový dvouramenný výložník (vyložení 2,5 m, ramena Ø60/3,5 mm, výztuha"]
[null,"mezi rameny, provedení pro osazení do dříku Ø89 mm stožárů specifikovaných v pol."]
[null,"č. 1 a č. 2, úhel sevření ramen 180°, kryt Ø102 mm proti zatékání vody do stožáru,"]
[null,"svou výškou výložník doplňuje závěsnou výšku svítidel na stožárech specifikov."]
[null,"v položkách č. 1 a č. 2 na 10 m, úhel vyložení nezatíž. výložníku 4°, celý výložník"]
[null,"oboustranně žárově zinkovaný)","ks",1,null,{"$f":"D324*E324","v":0}]
[{"$f":"A319+1","v":12},"odboč. ve stožáru - dodání 1 ks plastové ohebné ochranné trubky Ø40 mm délky"]
[null,"1 m pro průchod kabelu VO základem stožáru","ks",26,null,{"$f":"D326*E326","v":0}]
[{"$f":"A325+1","v":13},"stožárová elektrovýzbroj pro 1 jištěný okruh (min. IP2X) s pojistk. odpínačem"]
[null,"pro válcovou pojistku velikosti 10 x 38 mm, upevnění elektrovýzbroje na šroub"]
[null,"uvnitř stožáru, velikost elektrovýzbroje přizpůsobená vnitřnímu prostoru uvnitř"]
[null,"stožáru a velikosti dvířek (stožáry specifikované v položkách č. 1 a č. 2), nosná"]
[null,"konstrukce a svorky v povrchové úpravě odolávající korozi, čtyřsvorková,"]
[null,"připojení až 3 kabelů s žílami Cu/Al průřezu do 4x35 mm2 včetně","ks",24,null,{"$f":"D332*E332","v":0}]
[{"$f":"A327+1","v":14},"stožárová elektrovýzbroj pro 1 jištěný okruh (min. IP2X) s pojistk. odpínačem"]
[null,"pro válcovou pojistku velikosti 10 x 38 mm, upevnění elektrovýzbroje na šroub"]
[null,"uvnitř stožáru, velikost elektrovýzbroje přizpůsobená vnitřnímu prostoru uvnitř"]
[null,"stožáru a velikosti dvířek (stožáry specifikované v položkách č. 3 až č. 7), nosná"]
[null,"konstrukce a svorky v povrchové úpravě odolávající korozi, čtyřsvorková,"]
[null,"připojení až 3 kabelů s žílami Cu/Al průřezu min. 4x25 mm2 včetně","ks",46,null,{"$f":"D338*E338","v":0}]
[{"$f":"A333+1","v":15},"stožárová elektrovýzbroj pro 2 jištěné okruhy (min. IP2X) se 2 pojistk. odpínači"]
[null,"pro válcové pojistky velikosti 10 x 38 mm, upevnění elektrovýzbroje na šroub"]
[null,"uvnitř stožáru, velikost elektrovýzbroje přizpůsobená vnitřnímu prostoru uvnitř"]
[null,"stožáru a velikosti dvířek (stožáry specifikované v položkách č. 1 a č. 2), nosná"]
[null,"konstrukce a svorky v povrchové úpravě odolávající korozi, čtyřsvorková,"]
[null,"připojení až 3 kabelů s žílami Cu/Al průřezu do 4x35 mm2 včetně","ks",7,null,{"$f":"D344*E344","v":0}]
[{"$f":"A339+1","v":16},"stožárová elektrovýzbroj pro 2 jištěné okruhy (min. IP2X) se 2 poj. odpínači pro"]
[null,"pro válc. pojistky velikosti 10 x 38 mm, upevnění elektrovýzbroje v plast. skříňce,"]
[null,"velikost elektrovýzbroje přizpůsobená vnitřnímu prostoru skříňky (skříňky specif."]
[null,"v pol. č. 17), nosná konstrukce a svorky v povrch. úpravě odolávající korozi,"]
[null,"čtyřsvorková, připojení až 3 kabelů s žílami Cu/Al průřezu do 4x35 mm2 včetně","ks",1,null,{"$f":"D349*E349","v":0}]
[{"$f":"A345+1","v":17},"plast. skříňka (cca 380 mm x 300 mm x 120 mm, šedá, min. IP55, vhodná do venkov."]
[null,"prostředí, samozhášivý materiál, teplotní odolnost min. -25°C až +60°C°), nosná"]
[null,"konstrukce (pozink.) a potřebný spojovací materiál (nerez páska se sponami) pro"]
[null,"upevnění skříňky k dříku stožáru, materiál pro připojení ochranného vodiče"]
[null,"na uzemnění (CY 16 mm2 - 1 m, šroub M8 s pružnou podložkou), 7 ks průchodek"]
[null,"průchodek pro vyvedení kabelů ze skříňky (1 x CYKY-J 4x10, 1 x CYKY-J 4x16,"]
[null,"2 x AYKY-J 4x35, 2 x CYKY 3x1,5, 1 x CY16), tmel pro utěsnění otvorů (2 ks) v dříku,"]
[null,"materiál pro mechan. ochranu svodu mezi skříňkou a dříkem stožáru a při průchodu"]
[null,"svodu dříkem samolepka výstražného blesku na dvířka, beton C25/30 XF2 pro"]
[null,"přibetonování trubek k základu a pro opravu stávající betonové patky","ks",1,null,{"$f":"D359*E359","v":0}]
[{"$f":"A350+1","v":18},"plastová tuhá hrdlovaná trubka Ø40 mm (černá RAL 9005, UV stabilní, samozhášivá,"]
[null,"teplotní odolnost min. -25°C až +60°C, mechanická odolnost min. 750 N/5 cm, vnitřní"]
[null,"průměr min.33 mm) vč. ztratného prořezem","m",11,null,{"$f":"D362*E362","v":0}]
[{"$f":"A360+1","v":19},"válcová pojistka vel. 10 x 38, jmen. proud 6 A, charakteristika gG","ks",86,null,{"$f":"D363*E363","v":0}]
[{"$f":"A363+1","v":20},"válcová pojistka vel. 14 x 51, jmen. proud 16 A, charakteristika gG","ks",12,null,{"$f":"D364*E364","v":0}]
[{"$f":"A364+1","v":21},"nožová pojistka vel. 1, jmen. proud 63 A, charakteristika gG","ks",3,null,{"$f":"D365*E365","v":0}]
[{"$f":"A365+1","v":22},"smršťovací rozdělovací hlava pro kabely 4x6 až 4x50 mm2 (pro ukončení kabelů"]
[null,"ve stožárech nebo rozváděčích)","ks",189,null,{"$f":"D367*E367","v":0}]
[{"$f":"A366+1","v":23},"LED svítidlo 1 - Voltana 4 (32 LED, 700 mA, světelný tok min. 8900 lm, 75 W,"]
[null,"optika 5118, aktivní funkce udržování konstantního světelného toku po celou dobu"]
[null,"života, barva světla neutrálně bílá - 4000 K, aktivované autonomní stmívání svítidla"]
[null,"v přednastaveném provozním režimu - od sepnutí do 22 hod. 100 % světelného toku,"]
[null,"od 22 hod. do 23 hod. 75 % světel. toku, od 23 hod. do 04 hod. 50 % světel. toku,"]
[null,"od 04 hod. do 05 hod. 75 % světel. toku, od 05 hod. do vypnutí 100 % svět. toku"]
[null,"toku, třída ochrany I, barevné provedení šedá RAL 7038) nebo svítidlo odpovídajícího"]
[null,"vzhledu a opticjkých vlastností - Poznámka: Stavba bezprostředně navazuje na"]
[null,"stavbu „Rekonstrukce VO oblast Lužická - Lumírova“ s použitými LED svítidly"]
[null,"Voltana - vzhledem k uvedeným skutečnostem je požadováno použití LED svítidel"]
[null,"shodného vzhledu i optických vlastností","ks",33,null,{"$f":"D378*E378","v":0}]
[{"$f":"A368+1","v":24},"LED svítidlo 2 - Voltana 4 (32 LED, 700 mA, světelný tok min. 8900 lm, 75 W,"]
[null,"optika 5119, aktivní funkce udržování konstantního světelného toku po celou dobu"]
[null,"života, barva světla neutrálně bílá - 4000 K, aktivované autonomní stmívání svítidla"]
[null,"v přednastaveném provozním režimu - od sepnutí do 22 hod. 100 % světelného toku,"]
[null,"od 22 hod. do 23 hod. 75 % světel. toku, od 23 hod. do 04 hod. 50 % světel. toku,"]
[null,"od 04 hod. do 05 hod. 75 % světel. toku, od 05 hod. do vypnutí 100 % svět. toku"]
[null,"toku, třída ochrany I, barevné provedení šedá RAL 7038) nebo svítidlo odpovídajícího"]
[null,"vzhledu a opticjkých vlastností - Poznámka: Stavba bezprostředně navazuje na"]
[null,"stavbu „Rekonstrukce VO oblast Lužická - Lumírova“ s použitými LED svítidly"]
[null,"Voltana - vzhledem k uvedeným skutečnostem je požadováno použití LED svítidel"]
[null,"shodného vzhledu i optických vlastností","ks",4,null,{"$f":"D389*E389","v":0}]
[{"$f":"A379+1","v":25},"LED svítidlo 3 - Voltana 2 (16 LED, 500 mA, světelný tok min. 3410 lm, 28 W,"]
[null,"optika 5117, aktivní funkce udržování konstantního světelného toku po celou dobu"]
[null,"života, barva světla neutrálně bílá - 4000 K, aktivované autonomní stmívání svítidla"]
[null,"v přednastaveném provozním režimu - od sepnutí do 22 hod. 100 % světelného toku,"]
[null,"od 22 hod. do 23 hod. 75 % světel. toku, od 23 hod. do 04 hod. 50 % světel. toku,"]
[null,"od 04 hod. do 05 hod. 75 % světel. toku, od 05 hod. do vypnutí 100 % svět. toku"]
[null,"toku, třída ochrany I, barevné provedení šedá RAL 7038) nebo svítidlo odpovídajícího"]
[null,"vzhledu a opticjkých vlastností - Poznámka: Stavba bezprostředně navazuje na"]
[null,"stavbu „Rekonstrukce VO oblast Lužická - Lumírova“ s použitými LED svítidly"]
[null,"Voltana - vzhledem k uvedeným skutečnostem je požadováno použití LED svítidel"]
[null,"shodného vzhledu i optických vlastností","ks",39,null,{"$f":"D400*E400","v":0}]
[{"$f":"A390+1","v":26},"LED svítidlo 4 - Voltana 2 (16 LED, 350 mA, světelný tok min. 2530 lm, 20 W,"]
[null,"optika 5068, aktivní funkce udržování konstantního světelného toku po celou dobu"]
[null,"života, barva světla neutrálně bílá - 4000 K, aktivované autonomní stmívání svítidla"]
[null,"v přednastaveném provozním režimu - od sepnutí do 22 hod. 100 % světelného toku,"]
[null,"od 22 hod. do 23 hod. 75 % světel. toku, od 23 hod. do 04 hod. 50 % světel. toku,"]
[null,"od 04 hod. do 05 hod. 75 % světel. toku, od 05 hod. do vypnutí 100 % svět. toku"]
[null,"toku, třída ochrany I, barevné provedení šedá RAL 7038) nebo svítidlo odpovídajícího"]
[null,"vzhledu a opticjkých vlastností - Poznámka: Stavba bezprostředně navazuje na"]
[null,"stavbu „Rekonstrukce VO oblast Lužická - Lumírova“ s použitými LED svítidly"]
[null,"Voltana - vzhledem k uvedeným skutečnostem je požadováno použití LED svítidel"]
[null,"shodného vzhledu i optických vlastností","ks",6,null,{"$f":"D411*E411","v":0}]
[{"$f":"A401+1","v":27},"LED svítidlo 5 - Friza (32 LED, 500 mA, světelný tok min. 6340 lm, 51 W, optika"]
[null,"5096 symetrická, aktivní funkce udržování konstant. světel. toku po celou dobu"]
[null,"života, barva světla neutrálně bílá - 4000 K, aktivované autonomní stmívání svítidla"]
[null,"v přednastaveném provozním režimu - od sepnutí do 22 hod. 100 % světelného toku,"]
[null,"od 22 hod. do 23 hod. 75 % světel. toku, od 23 hod. do 04 hod. 50 % světel. toku,"]
[null,"od 04 hod. do 05 hod. 75 % světel. toku, od 05 hod. do vypnutí 100 % svět. toku"]
[null,"toku, třída ochrany I, barevné provedení šedá AKZO 900) nebo svítidlo odpovídajícího"]
[null,"vzhledu a opticjkých vlastností - Poznámka: Stavba bezprostředně navazuje na"]
[null,"stavbu „Rekonstrukce VO oblast Lužická - Lumírova“ s použitými LED svítidly"]
[null,"uverdeného typu - vzhledem k uvedeným skutečnostem je požadováno použití"]
[null,"LED svítidel shodného vzhledu i optických vlastností","ks",1,null,{"$f":"D422*E422","v":0}]
[{"$f":"A412+1","v":28},"LED svítidlo 6 - Friza (16 LED, 500 mA, světelný tok min. 3170 lm, 26 W, optika"]
[null,"5096 symetrická, aktivní funkce udržování konstant. světel. toku po celou dobu"]
[null,"života, barva světla neutrálně bílá - 4000 K, aktivované autonomní stmívání svítidla"]
[null,"v přednastaveném provozním režimu - od sepnutí do 22 hod. 100 % světelného toku,"]
[null,"od 22 hod. do 23 hod. 75 % světel. toku, od 23 hod. do 04 hod. 50 % světel. toku,"]
[null,"od 04 hod. do 05 hod. 75 % světel. toku, od 05 hod. do vypnutí 100 % svět. toku"]
[null,"toku, třída ochrany I, barevné provedení šedá AKZO 900) nebo svítidlo odpovídajícího"]
[null,"vzhledu a opticjkých vlastností - Poznámka: Stavba bezprostředně navazuje na"]
[null,"stavbu „Rekonstrukce VO oblast Lužická - Lumírova“ s použitými LED svítidly"]
[null,"uverdeného typu - vzhledem k uvedeným skutečnostem je požadováno použití"]
[null,"LED svítidel shodného vzhledu i optických vlastností","ks",1,null,{"$f":"D433*E433","v":0}]
[{"$f":"A423+1","v":29},"ocelový trubkový adaptér (redukce) s povrchovou úpravou odolávající dlouhodobě"]
[null,"povětrnostním vlivům (pozink.) pro upevnění LED svítidla s bočním otvorem pro"]
[null,"výložník Ø60 mm na dřík stožáru kónického stožáru s horním průměrem dříku 60 mm"]
[null,"(před objednáním nutno ověřit přesné skutečné provedení stožárů specifikovaných"]
[null,"v položkách č. 3 až č. 7)","ks",44,null,{"$f":"D438*E438","v":0}]
[{"$f":"A434+1","v":30},"plast. pojistková skříňka (provedení pro upevnění na beton. stožár, min. IP44/2X,"]
[null,"UV stabilní, samozhášivý materiál, teplotní odolnost min. -25°C až +60°C), s 1 ks"]
[null,"3p poj. odpínače pro válcové pojistky vel. 14, nosná konstrukce (pozink.) pro"]
[null,"upevnění skříňky na betonový stožár nerez páskami","ks",1,null,{"$f":"D442*E442","v":0}]
[{"$f":"A439+1","v":31},"plastový kryt (UV stabilní, teplotní odolnost min. -25°C až +60°C) proti zatékání"]
[null,"vody do ochranné trubky Ø40 mm v horní části stožáru","ks",1,null,{"$f":"D444*E444","v":0}]
[{"$f":"A443+1","v":32},"polopropichovací svorka pro napojení 1 žíly kabelu 1-AYKY-J 4x16 na 1 žílu"]
[null,"izolovaného vodiče 1-AES 4x25","ks",4,null,{"$f":"D446*E446","v":0}]
[{"$f":"A445+1","v":33},"plastová průchodka (UV stabilní, teplotní odolnost min. -25°C až +60°C) pro"]
[null,"vyvedení kabelu (4x10 až 4x16 mm2) z plastové skříňky","ks",2,null,{"$f":"D448*E448","v":0}]
[{"$f":"A447+1","v":34},"ocelová upevňovací páska nerez (š=12,7 mm, tl.=0,75 mm, 5,72 kN) vč. ztratného"]
[null,"prořezem","m",16,null,{"$f":"D450*E450","v":0}]
[{"$f":"A449+1","v":35},"spona pro ocelovou upevňovací nerez pásku šířky 12,7 mm a tloušťky 0,75 mm","ks",10,null,{"$f":"D451*E451","v":0}]
[{"$f":"A451+1","v":36},"lisovací kabelové oko pro připojení žíly kabelu Cu 35 mm2 (lanované jádro)","ks",2,null,{"$f":"D452*E452","v":0}]
[37,"lisovací kabelové oko pro připojení žíly kabelu Cu 50 mm2 (lanované jádro)","ks",6,null,0]
[38,"kabel CYKY-J 3x1,5 mm2 RE vč. ztratného prořezem","m",764,null,{"$f":"E454*D454","v":0}]
[39,"kabel 1-CYKY-J 3x50+35 mm2 SM vč. ztratného prořezem","m",290,null,{"$f":"E455*D455","v":0}]
[40,"kabel CYKY-J 4x16 mm2 RE vč. ztratného prořezem","m",1540,null,{"$f":"E456*D456","v":0}]
[41,"kabel CYKY-J 4x10 mm2 RE vč. ztratného prořezem","m",2070,null,0]
[42,"kabel 1-AYKY-J 4x16 mm2 RE vč. ztratného prořezem","m",85,null,{"$f":"E458*D458","v":0}]
[]
[null,"Celkem",null,null,null,{"$f":"SUM(F229:F459)","v":0}]
[]
[]
["III.A"," UZEMNĚNÍ - montáž","m.j.","počet","      cena za m.j.","cena celkem"]
[]
[1,"zemnič FeZn Ć 10","m",1680,null,{"$f":"ROUND((D465*E465),-1)","v":0}]
[{"$f":"A465+1","v":2},"připojení uzemnění konstrukce stožáru nebo rozváděče vč. montáže zemnící svorky,"]
[null,"přizemnění ochr. vodiče, označení zemniče samolepkou vč. dodání samolepky","ks",78,null,{"$f":"E467*D467","v":0}]
[{"$f":"A466+1","v":3},"nátěr zemniče FeZn Ø10 mm (základní na žár. zinek + 2 x vrchní šedý RAL 7046)"]
[null," vč. dodání barevy a potřeb. materiálu (štětce, ředidlo), dodání a osazení zž"]
[null,"smršťovací trubice na zemnič","m",118,null,{"$f":"E470*D470","v":0}]
[{"$f":"A468+1","v":4},"pevné spojení zemniče v zemi (2 svorky)  vč. ošetření spoje gumoasfaltovým"]
[null,"nátěrem a dodání příslušného gumoasfaltového nátěru","ks",47,null,{"$f":"E472*D472","v":0}]
[{"$f":"A471+1","v":5},"přizemnění vodiče PEN a ochrana 3 fáz. vodičů před atmosférickým přepětím (3 ks"]
[null,"bleskojistek NN, zem. tyč, zemnící svod, kryt svodu, spoj. a zkušební svorky, nátěr"]
[null,"spojů gumoasfaltem vč. dodání nátěru, označení zemniče) vč. mont. plošiny","ks",1,null,{"$f":"E475*D475","v":0}]
[]
[null,"Celkem",null,null,null,{"$f":"SUM(F465:F476)","v":0}]
[]
[]
["III.B"," UZEMNĚNÍ - materiál nosný","m.j.","počet","      cena za m.j.","cena celkem"]
[]
[1,"zemnič FeZn Ć10 mm vč. ztratného prořezem","kg",1051,null,{"$f":"ROUND((D482*E482),0)","v":0}]
[{"$f":"A482+1","v":2},"stožárová zkušební zemnící svorka pro zemnič FeZn Ø10 mm vč. upevňovacího"]
[null,"materiálu (vše v povrch. úpravě odolávající dlouhodobě povětrnostním vlivům)","ks",78,null,{"$f":"E484*D484","v":0}]
[{"$f":"A483+1","v":3},"spojovací svorka pro zemnič FeZn Ø10 mm v povrch. úpravě odolávající"]
[null,"dlouhodobě povětrnostním vlivům","ks",94,null,{"$f":"E486*D486","v":0}]
[{"$f":"A485+1","v":4},"materiál pro přizemnění vodiče PEN a ochranu fázových vodičů před atmosférickým"]
[null,"přepětím (3 bleskojistky ZnO, zemnící tyč FeZn délky 2 m, zem. lano FeZn 50 mm2,"]
[null,"dřevěná ochranná lišta svodu, veškeré svorky pro napojená bleskojistek, vodiče"]
[null,"PEN a uzemňovacího svodu na rozvod AES a na zemnič a další nezbytný upev."]
[null,"a propojovací materiál, pásky se svorkami a propojovací vodiče, gumoasfaltová"]
[null,"nátěrová hmota pro nátěr spojů, samolepka pro označení zemniče)","ks",1,null,{"$f":"E492*D492","v":0}]
[]
[null,"Celkem",null,null,null,{"$f":"SUM(F482:F493)","v":0}]
[]
[]
["IV.","ZEMNÍ PRÁCE","m.j.","počet","      cena za m.j.","cena celkem"]
[]
[1,"kompletní základ osvětl. stožáru jmen. výšky 10 m s dříkem určeným k vetknutí do"]
[null,"základu (provedení dle výkr. VO-944/504) vč. výkopu jámy, zabezpečení výkopu"]
[null,"proti sesuvu, zhotovení beton. podkladové desky, osazení stožárového pouzdra,"]
[null,"založení  2ks plast. ohebných ochran. trubek Ø40 mm pro průchod kabelů základem,"]
[null,"utěsnění otvorů kolem trubek PU pěnou, kompletní zabetonování základu včetně"]
[null,"nadzemní hlavice, zapískování stožárového pouzdra, zához jámy zeminou, zhutnění"]
[null,"záhozu, naložení, odvoz a uložení přebytečné zeminy a sutě na skládku - provedení"]
[null,"v zeleni včetně definitivní úpravy povrchu (zeleň), dodání stožárového pouzdra,"]
[null,"betonu, písku, ochranných trubek, PU pěny a travního semene","ks",25,null,{"$f":"E507*D507","v":0}]
[{"$f":"A499+1","v":2},"kompletní základ silničního osvětlovacího přírubového stožáru jmen. výšky 10 m"]
[null,"(provedení dle výkresu VO-944/504) včetně výkopu jámy, zabezpečení výkopu"]
[null,"proti sesuvu, osazení základového roštu, osazení 2 ks plastových ohebných"]
[null,"ochran. trubek Ø40 mm pro průchod kabelů základem a 1 ks pevné trubky Ø20 mm"]
[null,"pro odvod vody, kompletní zabetonování základu s armováním a provařením"]
[null,"armování a základ. roštu, záhozu jámy, zhutnění záhozu, naložení, odvozu"]
[null,"a uložení přebytečné zeminy a sutě na skládku - provedení v zeleni vč. def. úpravy"]
[null,"povrchu (osetí trávou), dodání ochranných trubek, betonu, travního semene,"]
[null,"ocelové betonářské výztuže Ø25 mm","ks",5,null,{"$f":"E516*D516","v":0}]
[{"$f":"A508+1","v":3},"kompletní základ silničního osvětlovacího přírubového stožáru jmen. výšky 10 m"]
[null,"(v dlážděném chodníku - provedení dle výkresu VO-944/504) včetně rozebrání"]
[null,"dlažby a podkladové vrstvy, očištění dlaždic, výkopu jámy, zabezpečení výkopu"]
[null,"proti sesuvu, osazení základového roštu, osazení 2 ks plastových ohebných"]
[null,"ochran. trubek Ø40 mm pro průchod kabelů základem a 1 ks pevné trubky Ø20 mm"]
[null,"pro odvod vody, kompletní zabetonování základu s armováním a provařením"]
[null,"armování a základ. roštu, záhozu jámy, zhutnění záhozu, naložení, odvozu a uložení"]
[null,"přebytečné zeminy a sutě na skládku, obnovení podklad. vrstvy chodníku a oprava"]
[null,"povrchu chodníku (beton. dlažba 30/30 cm) do původního stavu a vyspárování"]
[null,"včetně dodání ochranných trubek, ocelové betonářské výztuže Ø25 mm, betonu,"]
[null,"drceného kameniva frakce 4/8 mm a 0,814 m2 nové šedé betonové dlažby 30x30 cm"]
[null,"(pro 50% dotčeného povrchu)","ks",1,null,{"$f":"E528*D528","v":0}]
[{"$f":"A517+1","v":4},"kompletní základ kónického osvětl. stožáru jm. výšky 4 m a 5 m s dříkem určeným"]
[null,"k vetknutí do základu (provedení dle výkresu VO-944/505) včetně výkopu jámy,"]
[null,"zabezpečení výkopu proti sesuvu, zhotovení beton. podkladové desky, osazení"]
[null,"stožárového pouzdra, založení  2ks plast. oheb.ochranných trubek Ø40 mm pro"]
[null,"průchod kabelů základem, kompletní zabetonování základu vč. nadzemní hlavice,"]
[null,"zapískování stožárového pouzdra, zához jámy zeminou, zhutnění záhozu, odvoz"]
[null,"a uložení přebytečné zeminy a sutě na skládku - provedení v zeleni vč. definitivní"]
[null,"úpravy povrchu (zeleň), dodání stožárového pouzdra, betonu, písku, ochranných"]
[null,"trubek a travního semene","ks",41,null,{"$f":"E537*D537","v":0}]
[{"$f":"A529+1","v":5},"kompletní základ kónického osvětl. stožáru jmenovité výšky 6 m s dříkem určeným"]
[null,"k vetknutí do základu (provedení dle výkresu VO-944/505) včetně výkopu jámy,"]
[null,"zabezpečení výkopu proti sesuvu, zhotovení beton. podkladové desky, osazení"]
[null,"stožárového pouzdra, založení  2ks plast. oheb.ochranných trubek Ø40 mm pro"]
[null,"průchod kabelů základem, kompletní zabetonování základu vč. nadzemní hlavice,"]
[null,"zapískování stožárového pouzdra, zához jámy zeminou, zhutnění záhozu, odvoz"]
[null,"a uložení přebytečné zeminy a sutě na skládku - provedení v zeleni vč. definitivní"]
[null,"úpravy povrchu (zeleň), dodání stožárového pouzdra, betonu, písku, ochranných"]
[null,"trubek a travního semene","ks",2,null,{"$f":"E546*D546","v":0}]
[{"$f":"A538+1","v":6},"kompletní základ kónického osvětl. stožáru jmenovité výšky 6 m s dříkem určeným"]
[null,"k vetknutí do základu (v asfalt. ploše, provedení dle výkresu VO-944/505) včetně"]
[null,"řezání spár, rozbití asfalt. povrchu a podkladové betonové vrstvy, výkopu jámy,"]
[null,"zabezpečení výkopu proti sesuvu, zhotovení beton. podkladové desky, osazení"]
[null,"stožárového pouzdra, založení  2ks plast. oheb.ochranných trubek Ø40 mm pro"]
[null,"průchod kabelů základem, kompletní zabetonování základu, zapískování stožár."]
[null,"pouzdra, zához jámy zeminou, zhutnění záhozu, odvoz a uložení přebytečné zeminy"]
[null,"a sutě na skládku, obnovení beton. podkladové vrstvy chodníku (10 cm) a oprava"]
[null,"asfaltového povrchu chodníku (5 cm) do původ. stavu vč. aplikace spojovacího"]
[null,"postřiku, zalití spár modifikovanou zálivkou, dodání stožár. pouzdra, betonu, písku,"]
[null,"ochr. trubek, spojov. postřiku, asfaltové hmoty (typ dle stávajícího povrchu)"]
[null,"a modifikované zálivky","ks",1,null,{"$f":"E558*D558","v":0}]
[{"$f":"A547+1","v":7},"kompletní základ kónického osvětl. přírubového stožáru jmen výšky 4 m a 5 m"]
[null,"(provedení dle výkr. VO-944/506) vč. výkopu jámy, zabezpečení výkopu proti"]
[null,"sesuvu, osazení základ. roštu,osazení 2 ks plast. ohebných ochranných trubek"]
[null,"Ø40 mm pro průchod kabelů základem a 1 ks trubky Ø20 mm pro odvod vody,"]
[null,"kompletní zabetonování základu s armováním a provařením armování a základ."]
[null,"roštu, záhozu jámy, zhutnění záhozu, naložení, odvozu a uložení přebytečné"]
[null,"zeminy a sutě na skládku - provedení v zeleni vč. def. úpravy povrchu (zeleň),"]
[null,"dodání betonu, travního semene, trubek, ocel. betonářské výztuže Ø16 mm","ks",2,null,{"$f":"E566*D566","v":0}]
[{"$f":"A559+1","v":8},"příplatek na provedení prohloubeného základu stožáru jmen. výšky 10 m s dříkem"]
[null,"určeným k vetknutí do země v ochr. pásmu vodovodu (prohloubení základu o 0,5 m"]
[null,"proti standard. provedení) - vč. zabezpečení výkopu proti sesuvu, dodání betonu"]
[null,"C25/30-XF2, 0,5 m stožár. pouzdra, písku, bednění, záhozu výkopu zeminou, zhutnění"]
[null,"záhozu, naložení, odvozu a uložení přebytečné zeminy a sutě na skládku","ks",3,null,{"$f":"E571*D571","v":0}]
[{"$f":"A567+1","v":9},"příplatek na provedení prohloubeného základu stožáru jmen. výšky 5 m s dříkem"]
[null,"určeným k vetknutí do země v ochr. pásmu vodovodu (prohloubení základu o 1,2 m"]
[null,"proti standard. provedení) - vč. zabezpečení výkopu proti sesuvu, dodání betonu"]
[null,"C25/30-XF2, 1,2 m stožár. pouzdra, písku, bednění, záhozu výkopu zeminou, zhutnění"]
[null,"záhozu, naložení, odvozu a uložení přebytečné zeminy a sutě na skládku","ks",1,null,{"$f":"E576*D576","v":0}]
[{"$f":"A572+1","v":10},"zabetonování základového roštu pilíře rozváděče RVO v zeleni vč. výkopu jámy"]
[null,"pro základový rošt, úpravy terénu, naložení, odvozu a uložení přebytečné zeminy"]
[null,"a sutě na skládku včetně dodání betonu C25/30-XF2 a travního semene","ks",1,null,{"$f":"E579*D579","v":0}]
[{"$f":"A577+1","v":11},"vytvoření zpevněné dlážděné plochy 1,4 x 1 m v zeleni před zapínacím rozváděčem"]
[null,"vč. úpravy terénu kolem RVO, osazení obrubníků, zhotovení podkladové vrstvy"]
[null,"vydláždění povrchu zpevněné plochy, vyspárování, naložení, odvoz a uložení"]
[null,"přebytečné zeminy a sutě na skládku, dodání obrubníků, betonu C20/25, drceného"]
[null,"kameniva frakce 4/8 mm, šedé zámkové dlažby typu kost tloušťky 60 mm a písku","ks",1,null,{"$f":"E584*D584","v":0}]
[{"$f":"A580+1","v":12},"provedení základu pro sloupek DZ vč. výkopu pro základ (0,3 x 0,3 x 0,5 m),"]
[null,"zabetonování základu, montáže sloupku, úpravy 1 m2 terénu (v zeleni), naložení,"]
[null,"odvozu a uložení odpadu na skládku vč. dodání sloupku (Al nebo pozink.), kotev."]
[null,"roštu, spojovacího materiálu, betonu C25/30-XF2 a travního semene","ks",1,null,{"$f":"E588*D588","v":0}]
[{"$f":"A585+1","v":13},"demontáž sloupku dopravního značení v zeleni včetně odkopání základu, rozbití"]
[null,"betonového základu do 0,05 m3, naložení, odvoz, likvidace a uložení odpadu, zához"]
[null,"jámy přebytečnou zeminou z jiných výkopů, zhutnění záhozu, provedení definitivní"]
[null,"úpravy 1 m2 povrchu (osetí travním semenem) vč. dodání travního semene","ks",2,null,{"$f":"E592*D592","v":0}]
[{"$f":"A589+1","v":14},"kabelová rýha 35/50 cm v zeleni (provedení dle výkresu VO-944/507) včetně"]
[null,"výstražné fólie, potřebných sond, záhozu zeminou (vrstva do 8 cm nad chráničku"]
[null,"bez kamenů a hrubých nečistot) včetně zhutnění záhozu, naložení a odvoz zeminy"]
[null,"a sutě s uložením na skládku, uvedení plochy do původního stavu, osetí trávou -"]
[null,"včetně zbavení zeminy (vrstva 20 cm) větších kamenů a hrubých nečistot, dodávky"]
[null,"červené výstražné fólie š=33 cm a travního semene","m",1930,null,{"$f":"E598*D598","v":0}]
[{"$f":"A593+1","v":15},"kabel. rýha 35/50 cm v asfalt. chodníku (provedení dle výkr. VO-944/507) s drážkou"]
[null,"pro uložení zemniče v hloubce min. 50 cm vč. řezání spár, rozbití asfaltového povrchu"]
[null,"v šíři 1,55 m a beton. podklad. vrstvy, uložení výstr. fólie, potřeb. sond, záhozu výkopu"]
[null,"kamenivem a štěrkodrtí, zhutnění záhozu, odvozu zeminy a sutě s uložením na skládku,"]
[null,"obnovení beton. podklad. vrstvvy (tl. 10 cm), aplikace spojov. postřiku a uvedení"]
[null,"asf. povrchu (tl. 5 cm) v šíři 1,55 m do pův. stavu, zalití prac. spár modif. zálivkou - vč."]
[null,"dodávky drcen. kameniva 4/8 mm, ŠDA 0/32 mm, červené výstr. fólie š=33 cm, betonu"]
[null,"C20/25, spoj. postřiku, asfalt. hmoty (typ dle stáv. povrchu), modifik. zálivky","m",400,null,{"$f":"E606*D606","v":0}]
[{"$f":"A599+1","v":16},"kabelová rýha 35/50 cm v dlážděném chodníku s povrchem ze zámkové dlažby"]
[null,"(provedení dle výkresu VO-944/507) s drážkou pro uložení zemniče v hloubce"]
[null,"min. 50 cm včetně rozebrání dlažby v šíři 1,55 m, očištění a uložení dlažby, rozbití"]
[null,"podkladové vrstvy chodníku, výstražné fólie, potřebných sond, záhozu výkopu"]
[null,"kamenivem a štěrkodrtí, zhutnění záhozu, naložení a odvozu zeminy a sutě s uložením"]
[null,"na skládku, obnovení podkladové vrstvy chodníku a uvedení povrchu (předláždění)"]
[null,"do původního stavu v šíři 1,55 m, vyspárování dlažby - včetně dodávky písku,"]
[null,"drcen. kameniva 4/8 mm, ŠDA 0/32 mm, červené výstr. fólie š=33 cm, dodání nové"]
[null,"zámkové dlažby pro 20 % dotčeného povrchu (tj. 0,31 m2) - dle druhu stáv. dlažby","m",7,null,{"$f":"E615*D615","v":0}]
[{"$f":"A607+1","v":17},"kabelová rýha 35/50 cm v dlážděném chodníku s povrchem z beton. dlažby 30x30 cm"]
[null,"(provedení dle výkresu VO-944/507) s drážkou pro uložení zemniče v hloubce"]
[null,"min. 50 cm včetně rozebrání dlažby v šíři 1,55 m, očištění a uložení dlažby, rozbití"]
[null,"podkladové vrstvy chodníku, výstražné fólie, potřebných sond, záhozu výkopu"]
[null,"kamenivem a štěrkodrtí, zhutnění záhozu, naložení a odvozu zeminy a sutě s uložením"]
[null,"na skládku, obnovení podkladové vrstvy chodníku a uvedení povrchu (předláždění)"]
[null,"do původního stavu v šíři 1,55 m, vyspárování dlažby - včetně dodávky písku,"]
[null,"drcen. kameniva 4/8 mm, ŠDA 0/32 mm, červené výstr. fólie š=33 cm, dodání nové"]
[null,"betonové dlažby 30x30 cmpro 50 % dotčeného povrchu (tj. 0,775 m2)","m",51,null,{"$f":"E624*D624","v":0}]
[{"$f":"A616+1","v":18},"kabelová rýha 35/50 cm v dlážděném chodníku s povrchem z beton. dlažby 50x50 cm"]
[null,"(provedení dle výkresu VO-944/507) s drážkou pro uložení zemniče v hloubce"]
[null,"min. 50 cm včetně rozebrání dlažby v šíři 1,55 m, očištění a uložení dlažby, rozbití"]
[null,"podkladové vrstvy chodníku, výstražné fólie, potřebných sond, záhozu výkopu"]
[null,"kamenivem a štěrkodrtí, zhutnění záhozu, naložení a odvozu zeminy a sutě s uložením"]
[null,"na skládku, obnovení podkladové vrstvy chodníku a uvedení povrchu (předláždění)"]
[null,"do původního stavu v šíři 1,55 m, vyspárování dlažby - včetně dodávky písku,"]
[null,"drcen. kameniva 4/8 mm, ŠDA 0/32 mm, červené výstražné fólie š=33 cm, dodání"]
[null,"nové betonové dlažby 50x50 cm pro 50 % dotčeného povrchu (tj. 0,775 m2)","m",4,null,{"$f":"E633*D633","v":0}]
[{"$f":"A625+1","v":19},"kabelová rýha 35/50 cm v beton. chodníku (provedení dle výkresu VO-944/507)"]
[null,"s drážkou pro uložení zemniče v hloubce min. 50 cm vč. řezání spár, odstranění"]
[null,"stáv. betonového povrchu v šíři 1,55 m, výstražné fólie, potřebných sond, záhozu"]
[null,"výkopu kamenivem a štěrkodrtí, zhutnění záhozu, odvozu zeminy a sutě s uložením"]
[null,"na skládku, obnovení beton. povrchu v šíři 1,55 m do původního stavu - včetně"]
[null,"dodávky drceného kameniva 4/8 mm, ŠDA 0/32 mm, červené výstr. fólie š=33 cm"]
[null,"a betonu C25/30-XF2","m",11,null,{"$f":"E640*D640","v":0}]
[{"$f":"A634+1","v":20},"kabelová rýha 35/50 cm pod dnem odvodňovacího žlabu - rozebrání žlabu v šíři"]
[null,"0,5 m vč. očištění a uložení, výkop rýhy vč. uložení výstr. fólie, záhozu kamenivem"]
[null,"a štěrkodrtí, zhutnění záhozu, odvozu zeminy a sutě s uložením na skládku, uvedení"]
[null,"žlabu do původ. stavu (uložení do betonu) s vyspárováním - vč. dodávky betonu"]
[null,"C20/25, drcen. kameniva 4/8 mm, ŠDA 0/32 mm, červené výstražné fólie š=33 cm,"]
[null,"dodání nových odvodňovacích žlabů pro 50% dotčené délky (tj. 0,5 m)","m",1,null,{"$f":"E646*D646","v":0}]
[{"$f":"A641+1","v":21},"kabelová rýha 35/80 cm v asfaltovém vjezdu (provedení dle výkresu VO-944/507)"]
[null,"s drážkou pro uložení zemniče v hloubce min. 80 cm vč. řezání spár, rozbití asfalt."]
[null,"povrchu v šíři 1,55 m  a podklad. beton. vrstvy, zhotovení podkladového betonu"]
[null,"a obetonování chráničky ve výkopu, uložení výstražné fólie, potřebných sond,"]
[null,"záhozu výkopu štěrkodrtí, zhutnění záhozu, naložení a odvozu zeminy a suti"]
[null,"s uložením na skládku, obnovení betonové podkladové vrstvvy (10 cm) a uvedení"]
[null,"asfaltového povrchu (tl. min. 5 cm) v šíři 1,55 m do původního stavu, zalití"]
[null,"pracovních spár modifikovanou zálivkou - vč. dodávky betonu C20/25,  štěrkodrti"]
[null,"ŠDA 0/32 mm, červené výstražné fólie š=33 cm, spojov. postřiku, asfaltové hmoty"]
[null,"(typ dle stáv. povrchu), modifikované zálivky","m",10,null,{"$f":"E656*D656","v":0}]
[{"$f":"A647+1","v":22},"kabelová rýha 35/90 cm v zeleni v lese (provedení dle výkresu VO-944/507) včetně"]
[null,"výstražné fólie, potřebných sond, záhozu zeminou (vrstva do 8 cm nad chráničku"]
[null,"bez kamenů a hrubých nečistot) včetně zhutnění záhozu, naložení a odvoz zeminy"]
[null,"a sutě s uložením na skládku, uvedení plochy do původního stavu, osetí trávou -"]
[null,"včetně zbavení zeminy (vrstva 20 cm) větších kamenů a hrubých nečistot, dodávky"]
[null,"červené výstražné fólie š=33 cm a travního semene","m",215,null,{"$f":"E662*D662","v":0}]
[{"$f":"A657+1","v":23},"kabelová rýha 35/80 cm v zeleni včetně záhozu zeminou, zhutnění záhozu, naložení"]
[null,"a odvozu přebytečné zeminy a sutě s uložením na skládku, uvedení plochy do"]
[null,"původního stavu, osetí trávou vč. dodání travního semene (pozn. jedá se o výkop"]
[null,"pro odstranění stáv. kabelů VO z lesních pozemků v místech, kde v souběžné trase"]
[null,"není prováděn výkop kabelové rýhy pro nové vedení VO)","m",197,null,{"$f":"E667*D667","v":0}]
[{"$f":"A663+1","v":24},"kabelová rýha 50/120 přes asfalt. komunikaci (provedení dle výkresu VO-944/507)"]
[null,"vč. řezání spár, rozbití povrchu a podkladové vrstvy v šíři 2,5 m, potřeb. sond,"]
[null,"zabezpečení výkopu proti sesuvu, uložení 2 ks plastových ochranných trubek"]
[null,"HDPE Ø110 mm (rezervní trubku na koncích utěsnit proti zanášení PU pěnou),"]
[null,"obetonování trubek, červené výstražné fólie, záhozu výkopu štěrkodrtí včetně"]
[null,"zhutnění po vrstvách tl. max. 20 cm, naložení a odvozu zeminy a sutě s uložením"]
[null,"na skládku, obnovení podkladové konstrukční beton. vrstvy komunikace (15 cm)"]
[null,"a uvedení povrchu v tl. cca 15 cm v šíři 2,5 m do původ. stavu (2x spoj. postřik, 2x"]
[null,"asfalt. beton, zalití spár modifik. zálivkou) - vč. dodávky betonu C20/25, štěrkodrti"]
[null,"ŠDA 0/32 mm, červené výstr. fólie š=33 cm, 2 ks ochranných trubek HDPE Ø110 mm,"]
[null,"montážní PU pěny, spojovacího postřiku a asfaltového betonu ACO 11+ACP16"]
[null,"(dle stáv. povrchu)","m",13,null,{"$f":"E679*D679","v":0}]
[{"$f":"A668+1","v":25},"vyhledání a vyčištění stávajících prostupů pod komunikací","m",44,null,{"$f":"E680*D680","v":0}]
[{"$f":"A680+1","v":26},"řízený protlak pod komunikací - 1 x trubka Ć 110 mm (hloubka min. 120 cm) včetně"]
[null,"dodání chráničky z HDPE Ć 110 mm a spojek, potřebné mechanismy (výměra"]
[null,"položky zahrnuje i rezervu pro zhotovení protlaků v případě neprostupnosti stáv."]
[null,"prostupů - předpoklad 60% neprostupných stávajících prostupů) ","m",79,null,{"$f":"E684*D684","v":0}]
[{"$f":"A681+1","v":27},"provedení 2 jam (vstup a výstup) v zeleni pro protlak pod komunikací v hloubce"]
[null,"min. 120 cm včetně zabezpečení výkopu proti sesuvu, záhozu a zhutnění výkopu,"]
[null,"odvozu přebytečné zeminy a sutě s uložením na skládku, úprava terénu (zeleň) do"]
[null,"původního stavu vč. osetí trávou a dodání travního semene (výměra položky"]
[null,"zahrnuje i jámy pro protlaky zhotovené v případě neprostupnosti stávajících"]
[null,"prostupů - předpoklad 60% neprostupných stávajících prostupů) ","ks",9,null,{"$f":"E690*D690","v":0}]
[{"$f":"A685+1","v":28},"příplatek na provedení 1 ks jámy pro protlak pod komunikací ve zpevněném"]
[null,"povrchu - zámkové dlažbě (rozebrání, očištění a uložení 2 m2 dlažby, rozbití"]
[null,"podkladové vrstvy chodníku, zhotovení nové podkladové vrstvy chodníku"]
[null,"a uvedení povrchu do původního stavu vč. vyspárování, naložení, odvoz"]
[null,"a likvidace odpadu, dodání nové dlažby tl. 60 mm pro 20% dotčené plochy"]
[null,"(tj. 0,4 m2), dodání drceného kameniva 4/8 mm a písku na vyspárování","ks",1,null,{"$f":"E696*D696","v":0}]
[{"$f":"A691+1","v":29},"příplatek na provedení 1 ks jámy pro protlak pod komunikací ve zpevněném"]
[null,"povrchu - asfaltu (řezání 4 m spár, rozbití 2 m2 asfaltové plochy a betonové"]
[null,"podkladové vrstvy, zhotovení nové podkladové betonové vrstvy (tl. 10 cm)"]
[null,"a uvedení asfaltového povrchu  (v tl. 15 cm) do původního stavu, zalití spár"]
[null,"modifikovanou zálivkou - včetně dodání betonu C20/25, 2 x spojovacího postřiku,"]
[null,"asfaltového betonu ACO 11+ACP16, modifikované zálivky","ks",4,null,{"$f":"E702*D702","v":0}]
[{"$f":"A697+1","v":30},"provedení kopané sondy v asfaltové komunikaci (do hl. 150 cm) pro ověření"]
[null,"hloubky uložení stávajících inž. sítí - řezání spár, rozbití asf. povrchu (1 m2)"]
[null,"a podkladové vrstvy komunikace, výkop jámy, zajištění výkopu proti sesuvu, zásyp"]
[null,"výkopu štěrkodrtí vč. zhutnění, zhotovení nové podkladové vrstvy komunikace"]
[null,"a uvedení povrchu do původ. stavu vč. zalití pracovních spár modifikovanou zálivkou,"]
[null,"naložení, odvoz a likvidace odpadu, dodání betonu C20/25, štěrkodrti ŠDA 0/32 mm,"]
[null,"2 x spojovacího postřiku, asfaltového betonu ACO 11+ACP16, modifik. zálivky,"]
[null,"naložení, odvoz a likvidace odpadu","ks",7,null,{"$f":"E710*D710","v":0}]
[{"$f":"A703+1","v":31},"provedení kopané sondy v zeleni (do hl. 100 cm) pro ověření polohy a hloubky"]
[null,"uložení stávajících inž. sítí - výkop jámy 0,5 m x 0,5 m x 1 m, zához vč. zhutnění,"]
[null,"naložení a odvoz zeminy a sutě s uložením na skládku, uvedení plochy do"]
[null,"původ. stavu, osetí trávou - vč. zbavení zeminy (vrstva 20 cm) větších kamenů"]
[null,"a nečistot, dodání travního semene","ks",10,null,{"$f":"E715*D715","v":0}]
[{"$f":"A711+1","v":32},"dodání ohebné korugované chráničky HDPE/LDPE Æ 75 mm (vč. potřeb. spojek)"]
[null,"vč. uložení této chráničky do výkopu - výměra zahrnuje ztratné prořezem","m",3825,null,{"$f":"D717*E717","v":0}]
[{"$f":"A716+1","v":33},"osazení dělené kabelové chráničky Ø160 mm (délky 3 m) na stávající kabel"]
[null,"ČEZ Distribuce, a.s. v místě osazení stožáru v ochranném pásmu kabelu včetně"]
[null,"dodání chráničky, odkopání kabelu (v zeleni), zajištění kontroly pověřeným"]
[null,"pracovníkem ČEZ Distribuce, a.s. před záhozem, záhozu výkopu a úpravy povrchu"]
[null,"do původního stavu včetně dodání travního semene, naložení odvoz a uložení"]
[null,"odpadu - odkopání kabelu a osazení chráničky provede odborná firma - smluvní"]
[null,"partner ČEZ Distribuce, a.s.","ks",11,null,{"$f":"D724*E724","v":0}]
[{"$f":"A718+1","v":34},"ořez větve stromu ve výšce do 10 m nad zemí vč. ošetření místa řezu (zajistí"]
[null,"odborná firma), zajištění potřebného nářadí, montážní plošiny, odvozu, likvidace"]
[null,"a uložení odpadu","ks",1,null,{"$f":"D727*E727","v":0}]
[{"$f":"A725+1","v":35},"ořez keřů nebo drobných náletových dřevin včetně zajištění potřebné techniky,"]
[null,"zpracování, naložení, odvozu a uložení odpadu","m2",25,null,{"$f":"D729*E729","v":0}]
[{"$f":"A728+1","v":36},"dočasná ochrana kmene stromu a kořenových náběhů - dřevěná konstrukce (výška"]
[null,"min. 2 m) na povrch. patkách vč. dodání materiálu, montáže, demontáže, dovozu"]
[null,"a odvozu (v místech přiblížení výkopu ke kmenům stromů na lesních pozemcích)","ks",11,null,{"$f":"D732*E732","v":0}]
[{"$f":"A730+1","v":37},"ochrana chráničky s kabelem VO v místě křížení (min.1 m na obě strany) nebo"]
[null,"souběhu do 1 m kabelu VO s VN kabelem nebo horkovodem - dodání a osazení"]
[null,"beton. kabel. žlabu (korýtka) s víčkem","m",147,null,{"$f":"E735*D735","v":0}]
[{"$f":"A733+1","v":38},"příplatek na provedení křížení s jiným vedením vč. projednání se správcem, uložení"]
[null,"cizího vedení do chráničky (vč. dodání dělené chráničky délky min. 2,5 m do Ø160 mm"]
[null,"nebo betonového žlabu), odkopání vedení v místě křížení, obsypání cizího vedení"]
[null,"pískem vč. dodání písku, zához a zhutnění záhozu, provedení def. úpravy povrchu"]
[null,"trav. plochy vč. dodání travního semene, naložení a odvoz odpadu na skládku","ks",87,null,{"$f":"E740*D740","v":0}]
[{"$f":"A736+1","v":39},"příplatek na provedení křížení s jiným vedením (dle specifikace v pol č. 38)"]
[null,"v chodníku s asfaltovým povrchem - řezání spár, rozbití povrchu a betonové"]
[null,"podkladové vrstvy, obnovení betonové podkladové vrstvy (tl. 10 cm), aplikace"]
[null,"spojovacího postřiku, uvedení asfalt. povrchu (tl. min. 5 cm) do původního stavu,"]
[null,"zalití spár modifikovanou zálivkou, dodání betonu C20/25, spojovacího postřiku,"]
[null,"asfaltové hmoty (typ dle stávajícího povrchu) a modifikované zálivky","ks",11,null,{"$f":"E746*D746","v":0}]
[{"$f":"A741+1","v":40},"ochrana zemniče v ochranném pásmu plynovodu - uložení zemniče do tvárnicové"]
[null,"chráničky nebo betonového korýtka a vysypání pískem v délce min. 1 m na každou"]
[null,"stranu od plynovodu nebo v souběhu s plynovodem při vzdálenosti zemniče od"]
[null,"líce plynovodu do 1 m včetně zhotovení drážky na dně výkopu pro uložení korýtka"]
[null,"či žlabu, dodání beton. korýtka nebo beton. žlabu s víčkem, dodání písku, naložení,"]
[null,"odvoz a likvidace odpadu (vykopané zeminy)","m",64,null,{"$f":"E752*D752","v":0}]
[]
[null,"Celkem",null,null,null,{"$f":"SUM(F499:F753)","v":0}]
[]
[]
["V.","DODÁVKA","m.j.","počet","      cena za m.j.","cena celkem"]
[]
[1,"zapínací rozváděč RVO 6 vývodový v plast. skříni včetně plastového podstavce"]
[null,"s odnímatelným předním krytem a základového roštu, provedení schválené správou"]
[null,"VO (v souladu se ZTKP Ostravských komunikací, a.s. a v souladu s příslušnými"]
[null,"technickými normami), samozhášivý materiál SMC, barva RAL 7032, přirozené"]
[null,"odvětrávání, mech. odolnost min. IK 08, antiplakátovací úprava vnější strany dveří,"]
[null,"schéma zapojení a přístrojové vybavení rozváděče dle výkresu VO-944/503, krytí"]
[null,"min. IP54/2X, uzamykání dveří, oka pro visací zámek Ø12 mm, roční spínací"]
[null,"programovatelné hodiny, materiál odolný UV záření a stanoveným vnějším vlivům,"]
[null,"barva šedá, přístrojové vybavení vyhovující stanoveným vnějším vlivům (viz TZ) -"]
[null,"cena včetně dopravy a manipulace","ks",1,null,{"$f":"E768*D768","v":0}]
[]
[null,"Celkem",null,null,null,{"$f":"SUM(F759:F769)","v":0}]
[]
[]
["VI.","HODINOVÁ ZÚČTOVACÍ SAZBA","m.j.","počet","      cena za m.j.","cena celkem"]
[]
[1,"přepojení rozvodu VO, provizorní provoz, rozfázování, provozní měření, jednání"]
[null,"se správci sítí a vlastníky dotčených parcel, zajištění součinnosti se správci při"]
[null,"provádění prací v ochran. pásmech sítí a na lesních pozemcích, předání dotčených"]
[null,"nemovitostí vlastníkům","hod.",48,null,{"$f":"E778*D778","v":0}]
[{"$f":"A775+1","v":2},"výchozí elektro revize vč.  provedení měření a vypracování kompletní zprávy","hod.",53,null,{"$f":"E779*D779","v":0}]
[{"$f":"A779+1","v":3},"zajištění provizorního mobilního zdroje el. energie pro zkušební provoz nové"]
[null,"soustavy VO do doby provedení výchozí revize elektro","hod.",10,null,{"$f":"E781*D781","v":0}]
[]
[null,"Celkem",null,null,null,{"$f":"SUM(F775:F782)","v":0}]
[]
[]
["VII.","VEDLEJŠÍ A OSTATNÍ NÁKLADY","m.j.","počet","      cena za m.j.","cena celkem"]
[]
[1,"světelnětechnické měření nainstalované soustavy VO (ve 4 úsecích - viz"]
[null,"výpočty v TZ)","kpl",1,null,{"$f":"E789*D789","v":0}]
[{"$f":"A788+1","v":2},"digitální fotodokumentace stavby pro účely pasportizace VO","kpl",1,null,{"$f":"E790*D790","v":0}]
[{"$f":"A790+1","v":3},"digitální fotodokumentace (kamerová nahrávka) stavu dotčených komunikací"]
[null,"a ploch v rozsahu stavby (před zahájením stavby)","kpl",1,null,{"$f":"E792*D792","v":0}]
[{"$f":"A791+1","v":4},"geodetické zaměření celé stavby na podkladu katastrální mapy (CD se soubory"]
[null,"ve formátu dgn, dxf nebo dwg a tisk) ve čtyřech vyhotoveních","kpl",1,null,{"$f":"E794*D794","v":0}]
[{"$f":"A793+1","v":5},"vytýčení trasy VO a stožárů před zahájením stavby","kpl",1,null,{"$f":"E795*D795","v":0}]
[{"$f":"A795+1","v":6},"geodetické zaměření chráničky s kabely ČEZ v místě stavby osvětlovacích stožárů"]
[null,"v ochranném pásmu kabelů ČEZ Distribuce, a.s  (11 stožárů) v digitálním formátu"]
[null,"Microstation) - předat ČEZ Distribuce,a.s.","kpl",1,null,{"$f":"E798*D798","v":0}]
[{"$f":"A796+1","v":7},"geodetické zaměření VO v ochranném pásmu kanalizace OVaK, a.s. (předat"]
[null,"prostřednictvím OK, a.s.) - 1x tisk v KM a 1x elektronicky","kpl",1,null,{"$f":"E800*D800","v":0}]
[{"$f":"A799+1","v":8},"geodetické zaměření VO na pozemcích ve vlastnictví Lesů ČR, s.p. (předat na "]
[null,"Lesní správu Ostrava) - 1x tisk v KM a 1x elektronicky","kpl",1,null,{"$f":"E802*D802","v":0}]
[{"$f":"A801+1","v":9},"geodetické vytyčení dočasného záboru lesního pozemku v terénu dle schváleného"]
[null,"záborového elaborátu (záborový elaborát je součástí vyjádření LČR, s.p. - viz"]
[null,"Dokladová část, doklad č. 12)","kpl",1,null,{"$f":"E805*D805","v":0}]
[{"$f":"A803+1","v":10},"převěšení stávající dopravní značky nebo reklamní cedule vč. potřebného"]
[null,"upevňovacího materiálu (nerez pásky se sponami)","ks",4,null,{"$f":"D807*E807","v":0}]
[{"$f":"A806+1","v":11},"provizorní dopravní značení nebo jiná dopr. opatření včetně zajištění projektu,"]
[null,"projednání a odsouhlasení","kpl",1,null,{"$f":"D809*E809","v":0}]
[{"$f":"A808+1","v":12},"zajištění bezpečnosti na stavbě po dobu realizace stavby vč. zajištění návrhu"]
[null,"opatření, zajištění otevřených výkopů, lávek pro pěší, úhrada správních poplatků"]
[null,"souvisejících s realizací stavby","kpl",1,null,{"$f":"D812*E812","v":0}]
[{"$f":"A810+1","v":13},"zajištění obnovení (prodloužení platnosti) vyjádření k projektové dokumentaci"]
[null,"a zajištění vytýčení všech dotčených inženýrských sítí před zahájením prací"]
[null,"včetně úhrady souvisejících poplatků","kpl",1,null,{"$f":"D815*E815","v":0}]
[{"$f":"A813+1","v":14},"zajištění geometrických plánů pro vymezení rozsahu služebnosti inženýrské sítě"]
[null,"částí pozemků parc. č. 783 a parc. č. 789 v k.ú. Výškovice u Ostravy (vlastník"]
[null,"Lesy ČR, s.p.) v celkem 5 ks vyhotovení a 1 ks vyhotovení výkazu délek a výměr","kpl",1,null,{"$f":"D818*E818","v":0}]
[]
[null,"Celkem",null,null,null,{"$f":"SUM(F789:F819)","v":0}]